[Event "FRA-ch Open A-D 2018"]
[Site "Nimes"]
[Date "2018.08.20"]
[Round "3"]
[White "Alashtar, Aasef"]
[Black "Jangwa, Valentin"]
[Result "1-0"]
[ECO "A05"]
[WhiteElo "1724"]
[BlackElo "1648"]
[Annotator "NA"]
[PlyCount "125"]
[EventDate "2018.08.18"]
[EventType "tourn"]
[EventCountry "FRA"]
[SourceTitle "playchess.com"]
[Source "ChessBase"]
[SourceQuality "1"]
[TimeControl "40/5400+30:1800+30"]

1. Nf3 {[%emt 0:00:00]} Nf6 {[%emt 0:10:55]} 2. g3 {[%emt 0:00:25]} c6 {[%emt 0:00:09]} 3. Bg2 {[%emt 0:00:38]} d5 {[%emt 0:00:04]} 4. b3 {[%emt 0:00:29]} g6 {[%emt 0:00:12]} 5. Bb2 {[%emt 0:00:41]} Bg7 {[%emt 0:00:06]} 6. O-O {[%emt 0:00:34]} O-O {[%emt 0:00:04]} 7. c4 {[%emt 0:01:46]} Be6 {[%emt 0:00:25]} 8. cxd5 {[%emt 0:06:13]} Bxd5 {[%emt 0:00:13]} 9. d3 {[%emt 0:00:32]} Be6 {[%emt 0:00:35]} 10. Ng5 {[%emt 0:02:36]} Bd7 {[%emt 0:00:28]} 11. Nd2 {[%emt 0:03:41]} Qc8 {[%emt 0:00:47]} 12. Re1 {[%emt 0:03:39]} Bg4 {[%emt 0:00:12]} 13. f3 {[%emt 0:09:14]} Bd7 {[%emt 0:00:10]} 14. Qc1 {[%emt 0:10:14]} Na6 {[%emt 0:02:28]} 15. Nc4 {[%emt 0:03:53]} Nb4 {[%emt 0:00:45]} 16. Qd2 {[%emt 0:02:50]} Na6 {[%emt 0:02:14]} 17. Rac1 {[%emt 0:04:52]} Qd8 {[%emt 0:01:58]} 18. f4 {[%emt 0:03:53]} Nc7 {[%emt 0:01:09]} 19. e4 {[%emt 0:01:47]} h6 {[%emt 0:04:16]} 20. Nf3 {[%emt 0:00:46]} Be6 {[%emt 0:01:15]} 21. Nce5 {[%emt 0:05:08]} Nb5 {[%emt 0:04:15]} 22. a4 {[%emt 0:03:23]} Nc7 {[%emt 0:00:51]} 23. Nd4 {[%emt 0:01:04]} Bc8 {[%emt 0:04:44]} 24. b4 {[%emt 0:07:09]} Ng4 {[%emt 0:00:54]} 25. Ndf3 {[%emt 0:01:09]} a6 {[%emt 0:02:25]} 26. h3 {[%emt 0:00:47]} Nxe5 {[%emt 0:04:07]} 27. fxe5 {[%emt 0:03:00]} Ne6 {[%emt 0:01:52]} 28. a5 {[%emt 0:03:38]} Qd7 {[%emt 0:00:41]} 29. d4 {[%emt 0:00:58]} Nc7 {[%emt 0:00:43]} 30. Qe3 {[%emt 0:01:50]} e6 {[%emt 0:00:41]} 31. Nd2 {[%emt 0:00:37]} Qe7 {[%emt 0:00:24]} 32. Nc4 {[%emt 0:01:22]} Kh7 {[%emt 0:01:19]} 33. Rc2 {[%emt 0:03:48]} Nb5 {[%emt 0:00:47]} 34. Bc3 {[%emt 0:02:03]} Nxc3 {[%emt 0:00:23]} 35. Qxc3 {[%emt 0:00:09]} Qg5 {[%emt 0:00:17]} 36. Rf2 {[%emt 0:02:26]} Rb8 {[%emt 0:00:07]} 37. h4 {[%emt 0:01:17]} Qe7 {[%emt 0:00:04]} 38. Ref1 {[%emt 0:00:57]} Bd7 {[%emt 0:00:20]} 39. Nd6 {[%emt 0:01:02]} Be8 {[%emt 0:00:12]} 40. Bh3 {[%emt 0:01:58]} Rd8 {[%emt 0:00:41]} 41. Qc5 {[%emt 0:30:35]} Rd7 {[%emt 1:10:37]} 42. Kh2 {[%emt 0:01:24]} Rc7 {[%emt 0:00:39]} 43. Qb6 {[%emt 0:04:12]} Rd7 {[%emt 0:04:36]} 44. Nc8 {[%emt 0:00:00]} Qd8 {[%emt 0:00:00]} 45. Qxd8 {[%emt 0:00:00]} Rxd8 {[%emt 0:00:00]} 46. Nd6 {[%emt 0:00:00]} Kg8 {[%emt 0:00:00]} 47. Kg2 {[%emt 0:00:00]} h5 {[%emt 0:00:00]} 48. Rd1 {[%emt 0:00:00]} Rb8 {[%emt 0:00:00]} 49. Nc4 {[%emt 0:00:00]} Rd8 50. Kf1 Bh6 {[%emt 0:00:00]} 51. Ke2 {[%emt 0:00:00]} Bg7 {[%emt 0:00:00]} 52. Ke3 {[%emt 0:00:00]} Bh6+ {[%emt 0:00:00]} 53. Kd3 {[%emt 0:00:00]} Kh7 {[%emt 0:00:00]} 54. Rdf1 {[%emt 0:00:00]} Rg8 {[%emt 0:02:09]} 55. Nd6 {[%emt 0:00:00]} f5 {[%emt 0:07:00]} 56. exf6 {[%emt 0:04:03]} Rxd6 {[%emt 0:03:29]} 57. e5 {[%emt 0:00:25]} Rd8 58. f7 {[%emt 0:00:00]} Bxf7 {[%emt 0:02:07]} 59. Rxf7+ {[%emt 0:00:17]} Rg7 {[%emt 0:00:10]} 60. Bxe6 {[%emt 0:01:12]} Rb8 {[%emt 0:01:04]} 61. Rf8 {[%emt 0:01:22]} Rxf8 {[%emt 0:00:30]} 62. Rxf8 b6 {[%emt 0:02:28]} 63. axb6 {[%emt 0:00:21]} 1-0

[Event "FRA-ch Open A-D 2018"]
[Site "Nimes"]
[Date "2018.08.20"]
[Round "3"]
[White "Saugrain, Jean-Maxime"]
[Black "Sylvestre-Baron, Laurent"]
[Result "1-0"]
[ECO "E76"]
[WhiteElo "1682"]
[BlackElo "1730"]
[Annotator "NA"]
[PlyCount "111"]
[EventDate "2018.08.18"]
[EventType "tourn"]
[EventCountry "FRA"]
[SourceTitle "playchess.com"]
[Source "ChessBase"]
[SourceQuality "1"]
[TimeControl "40/5400+30:1800+30"]

1. c4 {[%emt 0:00:00]} Nf6 {[%emt 0:00:00]} 2. d4 {[%emt 0:00:06]} g6 {[%emt 0:00:00]} 3. Nc3 {[%emt 0:00:18]} Bg7 {[%emt 0:00:00]} 4. e4 {[%emt 0:00:44]} d6 {[%emt 0:00:00]} 5. f4 {[%emt 0:02:13]} Na6 {[%emt 0:01:00]} 6. Nf3 {[%emt 0:01:27]} c5 {[%emt 0:02:44]} 7. d5 {[%emt 0:00:41]} O-O {[%emt 0:02:55]} 8. Bd3 {[%emt 0:02:30]} Bg4 {[%emt 0:02:43]} 9. h3 {[%emt 0:01:45]} Bd7 {[%emt 0:00:32]} 10. g4 {[%emt 0:12:32]} Nb4 {[%emt 0:09:13]} 11. f5 {[%emt 0:11:27]} Qa5 {[%emt 0:01:52]} 12. O-O {[%emt 0:11:32]} b5 {[%emt 0:17:18]} 13. Nxb5 {[%emt 0:04:44]} Bxb5 {[%emt 0:05:19]} 14. cxb5 {[%emt 0:01:55]} Nxd3 {[%emt 0:04:04]} 15. Qxd3 {[%emt 0:03:10]} Qb4 {[%emt 0:05:34]} 16. Re1 {[%emt 0:03:00]} c4 17. Qc2 {[%emt 0:00:58]} Qxb5 {[%emt 0:03:10]} 18. Bd2 Nd7 {[%emt 0:16:57]} 19. Bc3 {[%emt 0:06:42]} Bxc3 {[%emt 0:01:57]} 20. Qxc3 {[%emt 0:14:44]} Nc5 {[%emt 0:01:37]} 21. Re2 {[%emt 0:01:53]} Nd3 {[%emt 0:02:03]} 22. Kh2 {[%emt 0:00:28]} Rab8 {[%emt 0:07:09]} 23. Nd4 {[%emt 0:01:20]} Qb6 24. Nc6 Rb7 {[%emt 0:00:50]} 25. Rb1 {[%emt 0:02:11]} Nf4 {[%emt 0:01:41]} 26. Rc2 {[%emt 0:02:29]} f6 27. Re1 {[%emt 0:01:13]} g5 {[%emt 0:04:43]} 28. Qxc4 {[%emt 0:01:09]} Kg7 {[%emt 0:02:27]} 29. Nd4 {[%emt 0:01:46]} Rc7 {[%emt 0:04:15]} 30. Qxc7 {[%emt 0:01:04]} Qxd4 {[%emt 0:01:30]} 31. Qc3 {[%emt 0:01:14]} Qa4 32. Qc4 {[%emt 0:00:50]} Qa5 {[%emt 0:00:46]} 33. Re3 {[%emt 0:00:09]} Qb6 {[%emt 0:00:27]} 34. Rf3 {[%emt 0:00:34]} h5 {[%emt 0:01:45]} 35. gxh5 {[%emt 0:00:19]} Kh6 {[%emt 0:01:50]} 36. Qc7 {[%emt 0:00:27]} Qxc7 {[%emt 0:00:54]} 37. Rxc7 {[%emt 0:00:06]} Rf7 {[%emt 0:00:34]} 38. Rxa7 {[%emt 0:00:12]} Kxh5 {[%emt 0:00:04]} 39. Ra8 {[%emt 0:00:56]} Rh7 {[%emt 0:00:01]} 40. Rb3 {[%emt 0:00:51]} g4 {[%emt 0:00:28]} 41. Raa3 {[%emt 0:33:45]} Kg5 {[%emt 0:31:12]} 42. Rg3 {[%emt 0:02:20]} Nxh3 {[%emt 0:00:18]} 43. Rxh3 {[%emt 0:00:13]} gxh3 {[%emt 0:00:45]} 44. Rxh3 {[%emt 0:00:06]} Rxh3+ {[%emt 0:00:40]} 45. Kxh3 {[%emt 0:00:06]} Kf4 {[%emt 0:00:12]} 46. a4 {[%emt 0:01:06]} Kxe4 {[%emt 0:00:06]} 47. a5 {[%emt 0:00:35]} Kxd5 {[%emt 0:00:12]} 48. a6 {[%emt 0:00:11]} Kc6 {[%emt 0:00:08]} 49. b4 {[%emt 0:00:02]} Kb6 {[%emt 0:00:17]} 50. b5 {[%emt 0:00:09]} Ka7 {[%emt 0:00:26]} 51. Kg3 Kb6 {[%emt 0:00:10]} 52. Kf4 {[%emt 0:00:24]} Ka7 {[%emt 0:00:05]} 53. Ke4 {[%emt 0:00:13]} Kb6 {[%emt 0:00:04]} 54. Kd5 {[%emt 0:00:16]} Ka7 {[%emt 0:00:09]} 55. Kc6 {[%emt 0:00:14]} d5 {[%emt 0:00:40]} 56. Kxd5 {[%emt 0:00:11]} 1-0

[Event "FRA-ch Open A-D 2018"]
[Site "Nimes"]
[Date "2018.08.20"]
[Round "3"]
[White "Marcellier, Clement"]
[Black "Plumat, Thibaud"]
[Result "0-1"]
[ECO "B06"]
[WhiteElo "1491"]
[BlackElo "1400"]
[Annotator "NA"]
[PlyCount "92"]
[EventDate "2018.08.18"]
[EventType "tourn"]
[EventCountry "FRA"]
[SourceTitle "playchess.com"]
[Source "ChessBase"]
[SourceQuality "1"]
[TimeControl "40/5400+30:1800+30"]

1. e4 {[%emt 0:00:00]} g6 {[%emt 0:07:02]} 2. d4 {[%emt 0:00:16]} Bg7 {[%emt 0:00:02]} 3. Nf3 {[%emt 0:01:13]} d6 {[%emt 0:00:01]} 4. Bc4 {[%emt 0:01:08]} Nd7 {[%emt 0:00:45]} 5. c3 {[%emt 0:04:21]} e6 {[%emt 0:01:09]} 6. Bb3 {[%emt 0:06:19]} b6 {[%emt 0:02:23]} 7. Bg5 {[%emt 0:00:31]} Ne7 {[%emt 0:00:49]} 8. Nbd2 {[%emt 0:00:33]} h6 {[%emt 0:01:43]} 9. Bh4 {[%emt 0:02:14]} Bb7 {[%emt 0:00:39]} 10. O-O {[%emt 0:00:50]} O-O {[%emt 0:00:48]} 11. Re1 {[%emt 0:04:16]} a6 {[%emt 0:02:24]} 12. h3 {[%emt 0:03:41]} Kh7 {[%emt 0:02:15]} 13. Qc2 {[%emt 0:10:38]} Qe8 {[%emt 0:06:52]} 14. Rad1 {[%emt 0:03:35]} Rc8 {[%emt 0:00:44]} 15. Qb1 {[%emt 0:02:07]} Kh8 {[%emt 0:06:38]} 16. Qd3 {[%emt 0:07:29]} e5 {[%emt 0:13:21]} 17. d5 {[%emt 0:02:35]} Nc5 {[%emt 0:04:13]} 18. Qe3 {[%emt 0:05:05]} g5 {[%emt 0:03:32]} 19. Bxg5 {[%emt 0:09:16]} hxg5 {[%emt 0:00:07]} 20. Qxg5 {[%emt 0:00:18]} f6 {[%emt 0:02:57]} 21. Qh4+ {[%emt 0:01:13]} Kg8 {[%emt 0:00:38]} 22. Bc2 {[%emt 0:03:37]} Qg6 {[%emt 0:02:26]} 23. b4 {[%emt 0:01:36]} Nd7 {[%emt 0:00:02]} 24. Bd3 {[%emt 0:03:20]} Kf7 {[%emt 0:00:35]} 25. g4 {[%emt 0:06:23]} Rh8 {[%emt 0:00:02]} 26. Qg3 {[%emt 0:00:05]} Qh6 {[%emt 0:00:07]} 27. h4 {[%emt 0:03:16]} Ng6 {[%emt 0:02:15]} 28. h5 {[%emt 0:01:27]} Nf4 {[%emt 0:00:35]} 29. Bc4 {[%emt 0:01:43]} Rcg8 {[%emt 0:01:02]} 30. Kf1 {[%emt 0:02:05]} Bf8 {[%emt 0:00:19]} 31. Qh4 {[%emt 0:01:05]} Be7 {[%emt 0:00:36]} 32. Re3 {[%emt 0:04:06]} f5 {[%emt 0:01:00]} 33. g5 {[%emt 0:00:14]} Qxh5 {[%emt 0:01:17]} 34. Qxh5+ {[%emt 0:00:35]} Rxh5 {[%emt 0:00:01]} 35. exf5 {[%emt 0:03:17]} Rh1+ {[%emt 0:00:15]} 36. Ng1 {[%emt 0:00:05]} Rxg5 {[%emt 0:00:03]} 37. Ndf3 {[%emt 0:01:09]} Rxf5 {[%emt 0:00:52]} 38. Bd3 {[%emt 0:01:46]} Rfh5 {[%emt 0:01:37]} 39. Bc4 {[%emt 0:01:03]} Rh8 {[%emt 0:04:26]} 40. Bb3 {[%emt 0:01:08]} Rg8 {[%emt 0:00:09]} 41. a4 {[%emt 0:31:34]} Ke8 {[%emt 0:30:55]} 42. Rc1 {[%emt 0:00:00]} Nh3 {[%emt 0:00:00]} 43. Ree1 {[%emt 0:00:00]} Nf4 {[%emt 0:00:00]} 44. Rcd1 {[%emt 0:00:00]} Nf8 {[%emt 0:00:00]} 45. c4 {[%emt 0:00:00]} Bc8 {[%emt 0:00:00]} 46. Bc2 {[%emt 0:00:00]} Bh3# {[%emt 0:00:00]} 0-1

[Event "FRA-ch Open A-D 2018"]
[Site "Nimes"]
[Date "2018.08.20"]
[Round "3"]
[White "Swaidan, Ali"]
[Black "Girardot, Frederic"]
[Result "1-0"]
[ECO "D15"]
[WhiteElo "1488"]
[BlackElo "1399"]
[Annotator "NA"]
[PlyCount "125"]
[EventDate "2018.08.18"]
[EventType "tourn"]
[EventCountry "FRA"]
[SourceTitle "playchess.com"]
[Source "ChessBase"]
[SourceQuality "1"]
[TimeControl "40/5400+30:1800+30"]

1. d4 {[%emt 0:06:18]} d5 {[%emt 0:00:10]} 2. c4 {[%emt 0:00:57]} c6 {[%emt 0:00:25]} 3. Nc3 {[%emt 0:00:15]} Nf6 {[%emt 0:00:23]} 4. Nf3 {[%emt 0:00:06]} Bf5 {[%emt 0:00:56]} 5. Bf4 {[%emt 0:00:23]} e6 {[%emt 0:00:16]} 6. e3 {[%emt 0:00:09]} Nbd7 {[%emt 0:00:13]} 7. Bd3 {[%emt 0:00:56]} Bg6 {[%emt 0:00:46]} 8. O-O {[%emt 0:00:31]} Bb4 {[%emt 0:00:41]} 9. c5 {[%emt 0:01:56]} Ba5 {[%emt 0:00:31]} 10. Rb1 {[%emt 0:04:31]} Bc7 {[%emt 0:01:05]} 11. Bxc7 {[%emt 0:03:03]} Qxc7 {[%emt 0:00:19]} 12. b4 {[%emt 0:00:38]} O-O {[%emt 0:02:24]} 13. a4 {[%emt 0:01:47]} e5 {[%emt 0:02:03]} 14. Bxg6 {[%emt 0:07:28]} fxg6 {[%emt 0:00:33]} 15. dxe5 {[%emt 0:22:29]} Nxe5 {[%emt 0:00:31]} 16. Nxe5 {[%emt 0:02:04]} Qxe5 {[%emt 0:00:27]} 17. Ne2 {[%emt 0:07:43]} Rfe8 {[%emt 0:05:15]} 18. Qd4 {[%emt 0:05:03]} Qe6 {[%emt 0:04:10]} 19. b5 {[%emt 0:01:39]} Kh8 {[%emt 0:02:36]} 20. Nf4 {[%emt 0:03:01]} Qe7 {[%emt 0:00:23]} 21. Rb2 {[%emt 0:02:38]} Ne4 {[%emt 0:01:56]} 22. Nd3 {[%emt 0:01:28]} Qf6 {[%emt 0:04:13]} 23. Qb4 {[%emt 0:04:24]} Qc3 {[%emt 0:05:25]} 24. bxc6 {[%emt 0:03:37]} bxc6 {[%emt 0:10:44]} 25. Qxc3 {[%emt 0:00:56]} Nxc3 {[%emt 0:00:33]} 26. Rc1 {[%emt 0:00:18]} Ne4 {[%emt 0:03:45]} 27. Rcb1 {[%emt 0:01:22]} h6 {[%emt 0:02:01]} 28. a5 {[%emt 0:00:43]} Nc3 {[%emt 0:01:12]} 29. Rc1 {[%emt 0:00:51]} Nb5 {[%emt 0:00:20]} 30. Nf4 {[%emt 0:00:21]} Kh7 {[%emt 0:01:26]} 31. Nxd5 {[%emt 0:00:18]} Red8 {[%emt 0:02:25]} 32. Nb4 {[%emt 0:02:03]} Rac8 {[%emt 0:01:07]} 33. Nxc6 {[%emt 0:00:10]} Rxc6 {[%emt 0:00:07]} 34. Rxb5 {[%emt 0:00:27]} a6 {[%emt 0:00:13]} 35. Rbb1 {[%emt 0:01:20]} Rd5 {[%emt 0:00:08]} 36. Ra1 {[%emt 0:01:50]} Rcxc5 {[%emt 0:00:12]} 37. Rxc5 {[%emt 0:00:07]} Rxc5 {[%emt 0:00:24]} 38. h4 {[%emt 0:01:32]} g5 {[%emt 0:00:36]} 39. hxg5 {[%emt 0:04:06]} Rxg5 {[%emt 0:00:18]} 40. f3 {[%emt 0:03:11]} Rb5 {[%emt 0:00:44]} 41. Kf2 {[%emt 0:31:23]} Kg6 {[%emt 0:30:03]} 42. f4 {[%emt 0:05:31]} Kf6 {[%emt 0:00:34]} 43. Kf3 {[%emt 0:00:00]} g6 {[%emt 0:00:00]} 44. g3 {[%emt 0:00:00]} Ke6 {[%emt 0:00:00]} 45. e4 {[%emt 0:00:00]} h5 {[%emt 0:00:00]} 46. Ra3 {[%emt 0:00:00]} Kf7 {[%emt 0:00:00]} 47. g4 {[%emt 0:00:00]} hxg4+ {[%emt 0:00:00]} 48. Kxg4 {[%emt 0:00:00]} Kf6 {[%emt 0:00:00]} 49. e5+ {[%emt 0:00:00]} Ke6 {[%emt 0:00:00]} 50. Kg5 {[%emt 0:00:00]} Kf7 {[%emt 0:00:00]} 51. Rc3 {[%emt 0:00:00]} Rxa5 {[%emt 0:00:00]} 52. Rc7+ {[%emt 0:00:00]} Ke6 {[%emt 0:00:00]} 53. Kxg6 {[%emt 0:00:06]} Kd5 {[%emt 0:00:00]} 54. Kf6 {[%emt 0:01:28]} Ke4 {[%emt 0:00:00]} 55. Rc4+ {[%emt 0:02:43]} Kd5 {[%emt 0:00:00]} 56. Rb4 {[%emt 0:00:07]} Rc5 {[%emt 0:00:00]} 57. e6 {[%emt 0:00:24]} a5 {[%emt 0:00:00]} 58. Ra4 {[%emt 0:00:13]} Rc8 {[%emt 0:00:00]} 59. Rxa5+ {[%emt 0:00:06]} Kd6 {[%emt 0:00:00]} 60. Kf7 {[%emt 0:00:41]} Rc7+ {[%emt 0:00:00]} 61. Kf6 {[%emt 0:00:02]} Rh7 {[%emt 0:00:00]} 62. Ra6+ {[%emt 0:00:14]} Kd5 {[%emt 0:00:00]} 63. f5 {[%emt 0:00:42]} 1-0

[Event "FRA-ch Open A-D 2018"]
[Site "Nimes"]
[Date "2018.08.20"]
[Round "3"]
[White "Thoreux-Josso, Aaron"]
[Black "Charruyer, Baptiste"]
[Result "1-0"]
[ECO "B01"]
[WhiteElo "1399"]
[BlackElo "1488"]
[Annotator "NA"]
[PlyCount "87"]
[EventDate "2018.08.18"]
[EventType "tourn"]
[EventCountry "FRA"]
[SourceTitle "playchess.com"]
[Source "ChessBase"]
[SourceQuality "1"]
[TimeControl "40/5400+30:1800+30"]

1. e4 {[%emt 0:00:00]} d5 {[%emt 0:00:00]} 2. exd5 {[%emt 0:00:00]} Nf6 {[%emt 0:00:00]} 3. d4 {[%emt 0:00:00]} Bg4 {[%emt 0:00:03]} 4. Be2 {[%emt 0:00:08]} Bxe2 {[%emt 0:01:08]} 5. Qxe2 {[%emt 0:01:10]} Qxd5 {[%emt 0:01:07]} 6. Nf3 {[%emt 0:00:24]} e6 {[%emt 0:02:25]} 7. Bf4 {[%emt 0:02:48]} Bd6 {[%emt 0:05:28]} 8. Bxd6 {[%emt 0:03:08]} Qxd6 {[%emt 0:03:05]} 9. c3 {[%emt 0:01:29]} O-O {[%emt 0:01:04]} 10. O-O {[%emt 0:00:39]} Nbd7 {[%emt 0:04:49]} 11. Nbd2 {[%emt 0:04:56]} Rfe8 {[%emt 0:05:19]} 12. Nc4 {[%emt 0:04:07]} Qd5 {[%emt 0:02:04]} 13. Nce5 {[%emt 0:07:43]} Rad8 {[%emt 0:08:59]} 14. Qc4 {[%emt 0:10:38]} c5 {[%emt 0:17:51]} 15. Qxd5 {[%emt 0:09:26]} exd5 {[%emt 0:01:18]} 16. Nxd7 {[%emt 0:05:50]} Nxd7 {[%emt 0:00:13]} 17. dxc5 {[%emt 0:00:57]} Nxc5 {[%emt 0:00:08]} 18. Rfe1 {[%emt 0:03:15]} Re4 {[%emt 0:02:19]} 19. Rad1 {[%emt 0:02:53]} f5 {[%emt 0:03:54]} 20. Kf1 {[%emt 0:03:03]} Na4 {[%emt 0:03:43]} 21. Nd4 {[%emt 0:02:43]} g6 {[%emt 0:02:51]} 22. Rb1 {[%emt 0:09:33]} Rde8 {[%emt 0:00:53]} 23. Red1 {[%emt 0:02:33]} Kf7 {[%emt 0:01:42]} 24. Nb5 {[%emt 0:01:56]} R8e6 {[%emt 0:06:02]} 25. Nc7 {[%emt 0:03:43]} Rd6 {[%emt 0:00:52]} 26. Nxd5 {[%emt 0:02:50]} Re5 {[%emt 0:00:38]} 27. Ne3 {[%emt 0:01:55]} Rxd1+ {[%emt 0:01:33]} 28. Rxd1 {[%emt 0:01:24]} Nxb2 {[%emt 0:00:30]} 29. Rb1 {[%emt 0:00:09]} Nd3 {[%emt 0:00:49]} 30. Rxb7+ {[%emt 0:00:22]} Kf6 {[%emt 0:00:27]} 31. Rxa7 {[%emt 0:00:28]} h5 {[%emt 0:00:24]} 32. Ra6+ {[%emt 0:00:22]} Kf7 {[%emt 0:00:16]} 33. Rd6 {[%emt 0:00:25]} Nf4 {[%emt 0:00:25]} 34. g3 {[%emt 0:01:19]} Ne6 {[%emt 0:00:35]} 35. Rd5 {[%emt 0:00:16]} Re4 {[%emt 0:00:14]} 36. Rd7+ {[%emt 0:00:49]} Kf8 {[%emt 0:00:17]} 37. Ra7 {[%emt 0:00:30]} f4 {[%emt 0:00:27]} 38. Ng2 {[%emt 0:00:53]} Rc4 {[%emt 0:00:43]} 39. Ra3 {[%emt 0:00:26]} g5 {[%emt 0:00:47]} 40. Ke2 {[%emt 0:00:52]} Re4+ {[%emt 0:01:27]} 41. Kd2 {[%emt 0:33:34]} Nc5 {[%emt 0:30:39]} 42. gxf4 {[%emt 0:01:16]} gxf4 {[%emt 0:00:08]} 43. Ra5 {[%emt 0:00:53]} Na4 {[%emt 0:01:12]} 44. Rf5+ 1-0

[Event "FRA-ch Open A-D 2018"]
[Site "Nimes"]
[Date "2018.08.20"]
[Round "3"]
[White "Menjra, Yanis"]
[Black "Borrini, Rodrigue"]
[Result "0-1"]
[ECO "A04"]
[WhiteElo "1391"]
[BlackElo "1481"]
[Annotator "NA"]
[PlyCount "50"]
[EventDate "2018.08.18"]
[EventType "tourn"]
[EventCountry "FRA"]
[SourceTitle "playchess.com"]
[Source "ChessBase"]
[SourceQuality "1"]
[TimeControl "40/5400+30:1800+30"]

1. Nf3 {[%emt 0:00:00]} e6 {[%emt 0:01:03]} 2. g3 {[%emt 0:00:32]} f5 {[%emt 0:00:49]} 3. Bg2 {[%emt 0:00:38]} d5 {[%emt 0:00:38]} 4. d4 {[%emt 0:01:26]} Nf6 {[%emt 0:01:33]} 5. c4 {[%emt 0:03:38]} c6 {[%emt 0:00:20]} 6. cxd5 {[%emt 0:03:08]} exd5 {[%emt 0:00:10]} 7. Nc3 {[%emt 0:01:41]} Bd6 {[%emt 0:02:32]} 8. Qc2 {[%emt 0:04:56]} Ne4 {[%emt 0:11:41]} 9. a3 {[%emt 0:07:29]} Nd7 {[%emt 0:02:43]} 10. h4 {[%emt 0:04:58]} Ndf6 {[%emt 0:09:27]} 11. Bg5 {[%emt 0:03:14]} Qc7 {[%emt 0:10:27]} 12. Bxf6 {[%emt 0:12:14]} Nxf6 {[%emt 0:01:14]} 13. Rc1 {[%emt 0:07:25]} Be6 {[%emt 0:21:17]} 14. Ng5 {[%emt 0:06:37]} Qe7 {[%emt 0:01:36]} 15. Nxe6 {[%emt 0:02:01]} Qxe6 {[%emt 0:00:17]} 16. O-O {[%emt 0:04:58]} O-O {[%emt 0:00:59]} 17. Bh3 {[%emt 0:01:45]} Nh5 {[%emt 0:13:01]} 18. Rce1 {[%emt 0:06:42]} Nxg3 {[%emt 0:07:15]} 19. fxg3 {[%emt 0:01:17]} Qe3+ {[%emt 0:02:13]} 20. Kh1 {[%emt 0:08:24]} Qxg3 {[%emt 0:03:03]} 21. e3 {[%emt 0:00:20]} Qxh3+ {[%emt 0:00:43]} 22. Kg1 {[%emt 0:00:10]} Rf6 {[%emt 0:02:24]} 23. Rf2 {[%emt 0:02:15]} Bg3 {[%emt 0:01:50]} 24. Rf3 {[%emt 0:00:53]} Rg6 {[%emt 0:01:04]} 25. Rxg3 {[%emt 0:02:09]} Rxg3+ {[%emt 0:00:43]} 0-1

[Event "FRA-ch Open A-D 2018"]
[Site "Nimes"]
[Date "2018.08.21"]
[Round "4"]
[White "Bianchi, Guillaume"]
[Black "Bajoni, Lucas"]
[Result "1-0"]
[ECO "A45"]
[WhiteElo "2064"]
[BlackElo "2098"]
[Annotator "NA RC"]
[PlyCount "71"]
[EventDate "2018.08.18"]
[EventType "tourn"]
[EventCountry "FRA"]
[SourceTitle "playchess.com"]
[Source "ChessBase"]
[SourceQuality "1"]
[TimeControl "40/5400+30:1800+30"]

1. d4 {[%emt 0:00:00]} Nf6 {[%emt 0:00:00]} 2. Bf4 {[%emt 0:00:00]} c5 {[%emt 0:01:19]} 3. d5 {[%emt 0:01:33]} d6 {[%emt 0:02:55]} 4. c4 {[%emt 0:04:28]} e5 {[%emt 0:02:57]} 5. dxe6 {[%emt 0:06:00]} Bxe6 {[%emt 0:02:24]} 6. Nc3 {[%emt 0:00:33]} Qa5 {[%emt 0:07:58]} 7. Qb3 {[%emt 0:11:49]} Nbd7 {[%emt 0:15:40]} 8. Bd2 {[%emt 0:06:06]} Qc7 {[%emt 0:04:07]} 9. Nf3 {[%emt 0:06:10]} h6 {[%emt 0:02:12]} 10. e4 {[%emt 0:04:50]} a6 {[%emt 0:03:18]} 11. Qc2 {[%emt 0:02:56]} g6 {[%emt 0:07:27]} 12. Be2 {[%emt 0:05:41]} Bg7 {[%emt 0:00:40]} 13. Rd1 {[%emt 0:05:09]} O-O {[%emt 0:07:29]} 14. O-O {[%emt 0:04:42]} Ne5 {[%emt 0:03:27]} 15. Nxe5 {[%emt 0:06:43]} dxe5 {[%emt 0:00:02]} 16. Nd5 {[%emt 0:02:03]} Nxd5 {[%emt 0:02:13]} 17. cxd5 {[%emt 0:00:13]} Bd7 {[%emt 0:02:41]} 18. Rc1 {[%emt 0:05:53]} Rfc8 {[%emt 0:00:45]} 19. b4 {[%emt 0:01:19]} b6 {[%emt 0:00:37]} 20. Be3 {[%emt 0:01:28]} Bf8 {[%emt 0:00:54]} 21. Rfd1 {[%emt 0:05:01]} Qd8 {[%emt 0:06:58]} 22. bxc5 {[%emt 0:02:13]} bxc5 {[%emt 0:05:04]} 23. Qc3 {[%emt 0:00:58]} Bb5 {[%emt 0:06:51]} 24. Bg4 {[%emt 0:03:15]} Rc7 {[%emt 0:02:47]} 25. f4 {[%emt 0:04:21]} exf4 {[%emt 0:05:50]} 26. Bxf4 {[%emt 0:00:49]} Rb7 {[%emt 0:00:34]} 27. Bf3 {[%emt 0:00:25]} Ba4 {[%emt 0:00:44]} 28. Re1 {[%emt 0:01:21]} Rb4 {[%emt 0:00:40]} 29. Bg3 {[%emt 0:00:40]} Bb5 {[%emt 0:01:21]} 30. e5 {[%emt 0:01:38]} Bc4 {[%emt 0:02:14]} 31. a3 {[%emt 0:01:50]} Ra4 {[%emt 0:00:17]} 32. e6 {[%emt 0:01:23]} Bg7 {[%emt 0:02:02]} 33. exf7+ {[%emt 0:00:38]} Kxf7 {[%emt 0:00:43]} 34. Be5 {[%emt 0:00:05]} Bxe5 {[%emt 0:00:52]} 35. Qxe5 {[%emt 0:00:06]} Ra7 {[%emt 0:00:55]} 36. d6 {[%emt 0:02:29]} 1-0

[Event "FRA-ch Open A-D 2018"]
[Site "Nimes"]
[Date "2018.08.21"]
[Round "4"]
[White "Destic, Pablo"]
[Black "Canivet, Arnaud"]
[Result "1-0"]
[ECO "B07"]
[WhiteElo "1921"]
[BlackElo "1825"]
[Annotator "NA RC"]
[PlyCount "59"]
[EventDate "2018.08.18"]
[EventType "tourn"]
[EventCountry "FRA"]
[SourceTitle "playchess.com"]
[Source "ChessBase"]
[SourceQuality "1"]
[TimeControl "40/5400+30:1800+30"]

1. e4 {[%emt 0:00:00]} d6 {[%emt 0:00:00]} 2. d4 {[%emt 0:00:00]} Nf6 {[%emt 0:02:01]} 3. Nc3 {[%emt 0:00:34]} g6 {[%emt 0:05:08]} 4. Bc4 {[%emt 0:02:17]} Bg7 {[%emt 0:05:20]} 5. Qe2 {[%emt 0:01:54]} e5 {[%emt 0:00:51]} 6. dxe5 {[%emt 0:01:36]} dxe5 {[%emt 0:00:09]} 7. Nf3 {[%emt 0:01:30]} Qe7 {[%emt 0:00:13]} 8. O-O {[%emt 0:05:12]} c6 {[%emt 0:08:35]} 9. Rd1 {[%emt 0:04:00]} O-O {[%emt 0:01:21]} 10. Bg5 {[%emt 0:02:54]} Bg4 {[%emt 0:22:24]} 11. h3 {[%emt 0:07:25]} Bxf3 {[%emt 0:00:54]} 12. Qxf3 {[%emt 0:00:25]} b5 {[%emt 0:05:03]} 13. Bb3 {[%emt 0:01:15]} a5 {[%emt 0:02:04]} 14. a4 {[%emt 0:04:19]} b4 {[%emt 0:00:01]} 15. Nb1 {[%emt 0:01:16]} Na6 {[%emt 0:00:29]} 16. Nd2 {[%emt 0:06:37]} Nc5 {[%emt 0:06:37]} 17. Nc4 {[%emt 0:05:13]} Nb7 {[%emt 0:01:33]} 18. Qe2 {[%emt 0:03:23]} h6 {[%emt 0:10:01]} 19. Bd2 {[%emt 0:01:46]} Rfd8 {[%emt 0:10:09]} 20. f3 {[%emt 0:07:50]} Nh5 {[%emt 0:00:31]} 21. Be3 {[%emt 0:00:54]} Nf4 {[%emt 0:00:37]} 22. Qf2 {[%emt 0:01:27]} Bf6 {[%emt 0:01:39]} 23. Kh2 {[%emt 0:02:27]} Kh7 {[%emt 0:02:42]} 24. Bb6 {[%emt 0:04:04]} Rxd1 {[%emt 0:00:36]} 25. Rxd1 {[%emt 0:02:27]} c5 {[%emt 0:00:43]} 26. Qd2 {[%emt 0:04:34]} Bh4 {[%emt 0:05:48]} 27. Qd7 {[%emt 0:02:36]} Qg5 {[%emt 0:00:05]} 28. Qxf7+ {[%emt 0:04:51]} Kh8 {[%emt 0:00:00]} 29. g4 {[%emt 0:00:16]} Ne6 {[%emt 0:08:13]} 30. Rd7 {[%emt 0:01:50]} 1-0